[Event "MCCT Oslo Esports Cup 2022"]
[Site "Oslo"]
[Date "2022.04.20"]
[Round "3.4"]
[White "Hansen, Eric"]
[Black "Mamedyarov, Shakhriyar"]
[Result "1-0"]
[ECO "C42"]
[WhiteElo "2606"]
[BlackElo "2771"]
[Annotator "TA"]
[PlyCount "105"]
[EventDate "2022.04.14"]
[EventType "tourn"]
[EventCountry "NOR"]
[SourceTitle "playchess.com"]
[Source "ChessBase"]
[SourceQuality "1"]
[TimeControl "1500+10"]

{[%evp 11,105,12,17,7,14,12,9,24,23,9,9,9,7,-6,-4,-9,0,0,8,-4,15,9,51,40,61,59,54,47,52,52,59,47,73,54,148,14,152,145,142,81,98,93,88,100,169,170,155,116,163,163,168,162,229,215,256,254,241,227,238,196,252,197,199,133,185,178,218,181,264,274,294,294,277,254,362,0,468,233,233,228,443,441,433,418,839,814,1759,721,731,731,731,674,848,828,29995,29996]} 1. e4 {[%emt 0:10:00]} e5 {[%emt 0:10:00]} 2. Nf3 {[%emt 0:00:04]} Nf6 {[%emt 0:00:02]} 3. Nxe5 {[%emt 0:00:37]} d6 {[%emt 0:00:02]} 4. Nf3 {[%emt 0:00:01]} Nxe4 {[%emt 0:00:01]} 5. d3 {[%emt 0:00:52]} Nf6 {[%emt 0:00:03]} 6. d4 {[%emt 0:00:01]} Be7 {[%emt 0:00:49]} 7. h3 {[%emt 0:00:24] C42: Petroff Defence: 3 Nxe5 and unusual White 3rd moves.} O-O {[%emt 0:00:04]} 8. Bd3 {[%emt 0:00:01]} c5 {[%emt 0:00:24]} 9. O-O {[%emt 0:00:09] The position is equal.} Nc6 {[%emt 0:00:02]} 10. c3 {[%emt 0:02:30]} h6 {[%emt 0:02:35]} 11. Re1 {[%emt 0:00:05]} Be6 {[%emt 0:00:50] [#]} 12. dxc5 $146 {[%emt 0:00:42]} ({Predecessor:} 12. Bf1 d5 13. dxc5 Bxc5 14. Be3 Qb6 15. Bxc5 {½-½ (15) Shkapenko,P (2425)-Jovanic,O (2490) Trieste 2017}) 12... dxc5 {[%emt 0:00:03]} 13. Na3 {[%emt 0:00:00]} Re8 {[%emt 0:02:17]} 14. Bf4 {[%emt 0:02:21]} Bf8 {[%emt 0:01:19]} 15. Qc2 {[%emt 0:00:36]} Nd5 {[%emt 0:00:31]} 16. Bg3 {[%emt 0:01:10]} Qf6 {[%emt 0:00:04][%cal Oe6h3]} 17. Be4 {[%emt 0:01:39]} a6 {[%emt 0:00:41]} 18. Nc4 {[%emt 0:00:47]} Nf4 {[%emt 0:01:22]} 19. Ne3 {[%emt 0:01:40]} Rad8 {[%emt 0:01:03]} 20. Ng4 {[%emt 0:00:16]} Bxg4 {[%emt 0:00:01]} 21. hxg4 {[%emt 0:00:00]} g6 {[%emt 0:01:11]} 22. Qa4 {[%emt 0:01:21] And now Bxf4 would win.} Bd6 {[%emt 0:01:00]} (22... Nd5 $14) 23. Bxc6 {[%emt 0:00:29]} (23. Bxf4 $16 Bxf4 24. Bxc6 Rxe1+ 25. Rxe1 bxc6 26. Qxa6) 23... bxc6 {[%emt 0:00:00]} (23... Ne2+ $1 $11 {keeps the balance.} 24. Rxe2 Rxe2 25. Bxd6 (25. Bxb7 Bxg3 26. fxg3 Rxb2 $11) 25... Rxd6) 24. Bxf4 $16 {[%emt 0:00:54]} ({Of course not} 24. Qxc6 $6 Ne2+ 25. Kf1 (25. Kh1 Nxg3+ 26. fxg3 Rxe1+ 27. Rxe1 a5 $11) 25... Nxg3+ 26. fxg3 Be5 27. Qxf6 Bxf6 $14) 24... Qxf4 {[%emt 0:00:11]} 25. Qxc6 {[%emt 0:00:24]} (25. Qxa6 $142 Rxe1+ 26. Rxe1) 25... Rxe1+ {[%emt 0:00:14]} 26. Rxe1 {[%emt 0:00:00]} Qxg4 {[%emt 0:00:02]} 27. Qxa6 {[%emt 0:00:06]} Qf4 {[%emt 0:00:26]} (27... h5 $16) 28. Qc6 $18 {[%emt 0:00:04]} Kg7 {[%emt 0:00:53]} 29. Qe4 {[%emt 0:00:18] Against Qc4} Qf6 {[%emt 0:00:06]} (29... Qxe4 $16 30. Rxe4 Ra8) 30. g3 {[%emt 0:00:18]} Rd7 {[%emt 0:00:24]} 31. Kg2 {[%emt 0:00:05]} g5 {[%emt 0:00:14]} (31... Bf8 $142 32. a4 Ra7) 32. a4 {[%emt 0:00:09]} Re7 {[%emt 0:00:08]} 33. Qc4 {[%emt 0:00:32]} Ra7 {[%emt 0:00:01]} 34. Re3 {[%emt 0:00:27]} Rb7 {[%emt 0:00:10]} 35. Re2 {[%emt 0:00:13]} Ra7 {[%emt 0:00:02]} (35... Bf8 $142 36. b3 Qc6) 36. Rd2 {[%emt 0:00:11]} Be7 {[%emt 0:00:20]} 37. Qe4 {[%emt 0:00:22]} (37. b3 $18) 37... Qa6 {[%emt 0:00:14]} (37... Qe6 $16 38. Qxe6 fxe6) 38. b3 {[%emt 0:00:25]} Bf6 {[%emt 0:00:07]} 39. Rd5 {[%emt 0:00:52]} Rc7 {[%emt 0:01:03]} (39... c4 $142) 40. c4 {[%emt 0:00:25]} Qb7 {[%emt 0:00:40]} 41. Qd3 {[%emt 0:00:08]} Re7 {[%emt 0:00:00]} 42. Nh2 {[%emt 0:00:06]} (42. Rxc5 g4 $16) 42... Re1 {[%emt 0:00:49]} (42... Bd4 $142 43. Nf3 Bf6) 43. Nf3 $2 {[%emt 0:00:11]} ({White should try} 43. Ng4 $18 Bd4 44. Ne3) 43... Rc1 $2 {[%emt 0:00:10][%mdl 8192]} (43... Re7 $1 $11 {and Black stays safe.}) 44. Rd7 {[%emt 0:00:13]} (44. Nd2 $142) 44... Qc6 {[%emt 0:01:06]} 45. Rd6 $1 {[%emt 0:00:02][%cal Bd7d6,Bd6f6,Bf6f5][%mdl 32] The board is on fire.} Qe8 {[%emt 0:00:15]} (45... Rc3 {might work better.} 46. Qh7+ (46. Rxc6 Rxd3 47. Rb6 Bc3 $18) 46... Kxh7 47. Rxc6 Kg7) 46. Qd2 {[%emt 0:00:24]} ({Not} 46. Qf5 Qe7 47. Rb6 Ra1 $16) 46... Rb1 {[%emt 0:00:23] [#]} 47. Rxf6 $1 {[%emt 0:00:08]} Rxb3 {[%emt 0:00:25]} (47... Kxf6 $142 48. Qc2 g4 49. Qxb1 Qa8) 48. Rf5 {[%emt 0:00:11]} g4 {[%emt 0:00:04]} 49. Nh4 {[%emt 0:00:13]} Qe4+ {[%emt 0:00:03] [#]} 50. Kh2 $1 {[%emt 0:00:10]} Rb1 {[%emt 0:00:01]} 51. f3 {[%emt 0:00:06]} gxf3 {[%emt 0:00:00]} 52. Rxf3 {[%emt 0:00:05] Nf5+ would kill now.} Kg8 {[%emt 0:00:10]} 53. Qd8+ {[%emt 0:00:04] Weighted Error Value: White=0.32/Black=0.64} 1-0

[Event "MCCT Oslo Esports Cup 2022"]
[Site "Oslo"]
[Date "2022.04.20"]
[Round "4.1"]
[White "Carlsen, Magnus"]
[Black "Praggnanandhaa R"]
[Result "1-0"]
[ECO "B31"]
[WhiteElo "2864"]
[BlackElo "2624"]
[Annotator "TA"]
[PlyCount "151"]
[EventDate "2022.04.14"]
[EventType "tourn"]
[EventCountry "NOR"]
[SourceTitle "playchess.com"]
[Source "ChessBase"]
[SourceQuality "1"]
[TimeControl "1500+10"]

{[%evp 16,151,22,28,24,22,31,10,31,39,37,12,20,14,20,11,19,18,37,22,29,14,34,29,43,35,26,29,85,81,75,76,92,38,27,29,43,40,40,17,16,20,22,18,37,37,27,34,33,56,73,60,145,100,104,98,88,100,214,110,112,122,123,142,179,23,29,48,59,39,30,56,64,64,54,12,54,54,78,92,62,71,103,103,183,176,176,191,191,162,168,165,191,168,191,191,191,191,154,154,191,191,699,470,29936,12847,12848,12850,29953,12843,29936,12827,29952,12850,12840,12817,12809,12799,12795,12799,12808,12796,12823,12806,12841,12821,12850,29938,29972,29939,29980,29981,29985,29986,29986,29987,29987,29988]} 1. e4 {[%emt 0:10:00]} c5 {[%emt 0:10:00]} 2. Nf3 {[%emt 0:00:18]} Nc6 {[%emt 0:00:02]} 3. Bb5 {[%emt 0:00:03]} g6 {[%emt 0:00:02]} 4. O-O {[%emt 0:00:45]} Bg7 {[%emt 0:00:03]} 5. d3 {[%emt 0:00:21]} Nf6 {[%emt 0:03:06]} 6. Bxc6 {[%emt 0:01:59]} dxc6 {[%emt 0:00:32]} 7. Re1 {[%emt 0:00:42]} O-O {[%emt 0:00:40]} 8. h3 {[%emt 0:00:08]} Qc7 {[%emt 0:00:44]} 9. e5 {[%emt 0:00:17]} Nd5 {[%emt 0:00:16]} 10. Nbd2 {[%emt 0:00:31]} Nf4 {[%emt 0:02:52]} 11. Ne4 {[%emt 0:04:00]} Bxe5 {[%emt 0:02:31]} 12. Nxe5 {[%emt 0:00:08]} Qxe5 {[%emt 0:00:02]} 13. Nc3 {[%emt 0:00:21]} (13. Ng3 $5 {[%cal Re1e5]} Qc7 14. Bxf4 Qxf4 15. Rxe7 $11) 13... Qc7 {[%emt 0:00:42]} 14. Bxf4 {[%emt 0:00:02]} Qxf4 {[%emt 0:00:00]} 15. Rxe7 {[%emt 0:00:02]} Bxh3 {[%emt 0:01:48]} 16. Rxb7 {[%emt 0:00:03]} Bc8 {[%emt 0:00:51]} 17. Re7 {[%emt 0:00:09]} Be6 {[%emt 0:00:02]} 18. Qc1 {[%emt 0:01:30]} Qh4 {[%emt 0:00:36]} (18... Qd6 $5 {[%cal Rd6e7]} 19. Rb7 Bf5 $11) 19. Rc7 {[%emt 0:00:23]} c4 {[%emt 0:00:04]} 20. dxc4 {[%emt 0:00:25]} Qxc4 {[%emt 0:01:03]} 21. Qe3 {[%emt 0:00:03]} Bd5 {[%emt 0:00:16]} (21... Qb4 $11 {keeps the balance.}) 22. Nxd5 $16 {[%emt 0:00:08]} ({Of course not} 22. Rxa7 $6 Rxa7 23. Qxa7 Bxg2 $11) 22... Qxd5 {[%emt 0:00:02]} 23. Rxa7 {[%emt 0:00:01]} Rae8 {[%emt 0:00:30]} 24. Re7 {[%emt 0:00:03]} (24. Qc3 $16) 24... Rxe7 $14 {[%emt 0:00:22]} 25. Qxe7 {[%emt 0:00:03]} Qd4 $1 {[%emt 0:00:01]} 26. c3 {[%emt 0:01:18]} Qd2 {[%emt 0:00:10]} 27. Qb7 {[%emt 0:01:11]} Re8 {[%emt 0:00:44]} 28. Qxc6 {[%emt 0:00:49]} Re1+ {[%emt 0:00:32]} 29. Rxe1 {[%emt 0:00:02]} Qxe1+ {[%emt 0:00:00]} 30. Kh2 {[%emt 0:00:00]} Qxf2 {[%emt 0:00:00]} 31. Qe8+ {[%emt 0:01:09]} Kg7 {[%emt 0:00:01]} 32. Qe5+ {[%emt 0:00:05]} f6 $1 {[%emt 0:00:03]} 33. Qe7+ {[%emt 0:00:02]} Kh6 {[%emt 0:00:04]} ({Black should play} 33... Kg8 $14) 34. b4 {[%emt 0:00:03]} Qf4+ {[%emt 0:00:43]} 35. Kg1 $1 {[%emt 0:00:02]} Qc1+ {[%emt 0:00:10]} 36. Kf2 $1 {[%emt 0:00:01]} Qd2+ {[%emt 0:00:05]} (36... Qf4+ $16 {was worth a try.} 37. Ke2 Qc4+ 38. Kf3 Qf1+ 39. Kg3 g5) 37. Qe2 {[%emt 0:00:02]} (37. Kf3 $1 $18 {Black must now prevent Qe3+.} Qd5+ 38. Qe4) 37... Qf4+ $16 {[%emt 0:00:03]} 38. Qf3 {[%emt 0:00:02]} Qd2+ {[%emt 0:00:01]} 39. Kg3 {[%emt 0:00:12]} Kg7 {[%emt 0:00:39]} 40. a4 $2 {[%emt 0:00:02]} ({White has to play} 40. Qb7+ $18 Kh6 41. Qc6) 40... Qg5+ {[%emt 0:00:15]} 41. Kf2 {[%emt 0:00:03]} Qd2+ {[%emt 0:00:05]} 42. Qe2 {[%emt 0:00:56]} Qxc3 {[%emt 0:00:35]} 43. Qe7+ {[%emt 0:00:01]} Kg8 {[%emt 0:00:00]} 44. a5 $1 {[%emt 0:00:28]} Qd2+ {[%emt 0:00:27]} 45. Kg3 {[%emt 0:00:03]} g5 {[%emt 0:00:14]} 46. Qxf6 {[%emt 0:00:31]} Qe1+ {[%emt 0:00:06]} 47. Qf2 $1 {[%emt 0:00:51]} Qxb4 {[%emt 0:00:03]} 48. Qf5 {[%emt 0:00:04]} Qe1+ {[%emt 0:00:30]} 49. Kg4 {[%emt 0:00:31]} Qb4+ {[%emt 0:00:23]} (49... Qe2+ $16 50. Kxg5 Qxg2+ 51. Kf6 Qb7) 50. Kxg5 $18 {[%emt 0:00:10]} Qd2+ {[%emt 0:00:05]} 51. Kh5 {[%emt 0:00:02]} Qd6 {[%emt 0:00:16]} 52. g3 {[%emt 0:00:46]} Qc6 {[%emt 0:00:17]} 53. Kg5 {[%emt 0:00:32]} Kg7 {[%emt 0:00:06] [#]} 54. Qe5+ $1 {[%emt 0:00:09]} Kf7 {[%emt 0:00:01]} 55. Qf4+ {[%emt 0:00:46]} Kg7 {[%emt 0:00:03]} 56. Qd4+ {[%emt 0:00:06]} Kg8 {[%emt 0:00:13]} 57. Qb6 {[%emt 0:00:47]} Qd5+ {[%emt 0:00:11]} 58. Kf6 {[%emt 0:00:02]} Qf3+ $2 {[%emt 0:00:09]} (58... Qf7+ 59. Ke5 Qg7+ 60. Kd5 Qd7+ 61. Kc5 Qf5+ 62. Kc6 Qf3+ 63. Kd7 Qxg3 64. Qe6+ Kg7) 59. Ke7 $18 {[%emt 0:00:01]} Qa3+ {[%emt 0:00:15]} (59... Qf7+ $18 60. Kd8 Qf8+ 61. Kc7 Qf7+ 62. Kc8 Qf5+ 63. Kb8 Qe5+ 64. Qc7 Qb2+ 65. Ka8 Qa3 66. Qc8+ Kg7) 60. Qd6 {[%emt 0:00:15]} Qf3 {[%emt 0:00:15]} 61. a6 {[%emt 0:00:17]} Qf7+ {[%emt 0:00:04]} 62. Kd8 {[%emt 0:00:02]} Qa2 {[%emt 0:00:10]} 63. Kc7 {[%emt 0:00:14]} Qf7+ {[%emt 0:00:11]} 64. Kb6 {[%emt 0:00:06]} (64. Qd7 $142 Qc4+ 65. Qc6 Qf7+ 66. Kb8 Qb3+ 67. Kc8 Qf7 68. Kb8 Qb3+ 69. Ka8 Qxg3 70. a7) 64... Qb3+ {[%emt 0:00:05]} 65. Ka7 {[%emt 0:00:02]} Qf7+ {[%emt 0:00:19]} 66. Ka8 {[%emt 0:00:08]} Qf3+ {[%emt 0:00:01]} 67. Kb8 {[%emt 0:00:01]} Qb3+ {[%emt 0:00:02] [#]} 68. Kc8 $1 {[%emt 0:00:04]} Qc4+ {[%emt 0:00:25]} 69. Kb7 {[%emt 0:00:03]} Qb3+ {[%emt 0:00:12]} 70. Qb6 {[%emt 0:00:01]} Qf3+ {[%emt 0:00:07]} 71. Ka7 {[%emt 0:00:02]} Qa3 {[%emt 0:00:18]} 72. Ka8 {[%emt 0:00:16]} Kg7 {[%emt 0:00:09]} 73. a7 {[%emt 0:00:36]} Qf8+ {[%emt 0:00:09]} 74. Kb7 {[%emt 0:00:02]} Qf3+ {[%emt 0:00:02]} 75. Qc6 {[%emt 0:00:02]} Qb3+ {[%emt 0:00:29]} 76. Kc8 {[%emt 0:00:02]} 1-0

[Event "MCCT Oslo Esports Cup 2022"]
[Site "Oslo"]
[Date "2022.04.20"]
[Round "4.1"]
[White "Giri, Anish"]
[Black "Van Foreest, Jorden"]
[Result "1/2-1/2"]
[ECO "E94"]
[WhiteElo "2773"]
[BlackElo "2714"]
[Annotator "TA"]
[PlyCount "108"]
[EventDate "2022.04.14"]
[EventType "tourn"]
[EventCountry "NOR"]
[SourceTitle "playchess.com"]
[Source "ChessBase"]
[SourceQuality "1"]
[TimeControl "1500+10"]

{[%evp 15,108,39,38,36,33,31,30,39,48,48,53,40,43,44,39,31,31,32,41,0,0,0,0,0,0,0,0,0,52,13,20,0,35,15,22,0,0,0,0,0,0,0,0,0,0,0,0,0,0,0,0,0,0,0,0,0,0,0,0,0,0,0,0,0,0,0,0,0,0,0,0,0,0,0,0,0,0,0,0,0,0,0,0,0,0,0,0,0,0,0,0,0,0,0,0]} 1. d4 {[%emt 0:10:00]} Nf6 {[%emt 0:10:00]} 2. c4 {[%emt 0:00:02]} g6 {[%emt 0:00:02]} 3. Nc3 {[%emt 0:00:05]} Bg7 {[%emt 0:00:01]} 4. e4 {[%emt 0:00:01]} d6 {[%emt 0:00:04]} 5. Nf3 {[%emt 0:00:01][%cal Bg1f3,Bf3e1,Be1d3][%mdl 32]} O-O {[%emt 0:00:02]} 6. Be2 {[%emt 0:00:01]} e5 {[%emt 0:00:01]} 7. O-O {[%emt 0:00:01]} Bg4 {[%emt 0:00:01]} 8. d5 {[%emt 0:00:12]} a5 {[%emt 0:00:28]} 9. Ne1 {[%emt 0:00:35] E94: King's Indian: Classical: 6 Be2 e5 7 0-0: Various Black 7th moves.} Bxe2 {[%emt 0:01:06]} 10. Qxe2 {[%emt 0:00:01]} Na6 {[%emt 0:00:01]} 11. Nd3 {[%emt 0:00:08] [#] White has an edge.} b6 $146 {[%emt 0:00:06]} ({Predecessor:} 11... Nd7 12. Be3 f5 13. f3 Nac5 14. Nxc5 Nxc5 15. Bxc5 dxc5 16. Rad1 Rf7 17. Rd3 f4 {0-1 (59) Donchenko,A (2648)-Lagarde,M (2640) Legnica 2021}) 12. Bg5 {[%emt 0:00:46]} h6 {[%emt 0:00:11]} 13. Bd2 {[%emt 0:00:24]} Nd7 {[%emt 0:00:56]} 14. Rab1 {[%emt 0:01:40]} Ndc5 {[%emt 0:02:05]} 15. Nxc5 {[%emt 0:00:06]} Nxc5 {[%emt 0:00:03]} 16. Be3 {[%emt 0:02:40]} f5 {[%emt 0:00:15]} 17. Rfd1 {[%emt 0:00:56]} f4 {[%emt 0:00:36]} 18. Bxc5 {[%emt 0:00:01] [#] Ba3 is the strong threat.} f3 $1 {[%emt 0:00:01]} 19. gxf3 {[%emt 0:00:32]} bxc5 {[%emt 0:00:05]} 20. Kh1 {[%emt 0:00:12]} Kh7 {[%emt 0:00:58]} 21. Rg1 {[%emt 0:00:20]} h5 {[%emt 0:00:11]} ({Black should play} 21... Bf6 $11) 22. Rbd1 {[%emt 0:01:45][%cal Bb1d1,Bd1d3,Bd3a3][%mdl 32]} (22. Rg2 $5 {[%cal Rb1g1]}) 22... Bh6 {[%emt 0:00:26]} 23. Rd3 {[%emt 0:00:02]} Qd7 {[%emt 0:00:48]} 24. Qf1 {[%emt 0:00:11]} Rf6 {[%emt 0:00:26] The position is equal.} 25. Qg2 {[%emt 0:01:46]} Raf8 {[%emt 0:00:08]} 26. Nb5 {[%emt 0:00:20]} g5 {[%emt 0:04:02]} 27. Ra3 {[%emt 0:00:04]} R8f7 {[%emt 0:00:19]} 28. Rxa5 {[%emt 0:00:57]} Rxf3 {[%emt 0:00:12]} 29. Ra7 $1 {[%emt 0:00:01]} Rxf2 {[%emt 0:00:06]} 30. Qxf2 {[%emt 0:00:05]} Rxf2 {[%emt 0:00:00]} 31. Rxc7 {[%emt 0:00:01]} Qxc7 {[%emt 0:00:03]} 32. Nxc7 $11 {[%emt 0:00:00][%mdl 4096] Endgame KRB-KRN} g4 {[%emt 0:00:59][%cal Bg5g4,Bg4h3][%mdl 32]} 33. Rg2 {[%emt 0:00:47]} Rf7 {[%emt 0:00:16] [#] Strongly threatening ...Be3.} 34. Ne6 {[%emt 0:00:23]} Be3 {[%emt 0:00:55]} 35. h3 {[%emt 0:00:03]} gxh3 {[%emt 0:02:53]} 36. Rg3 {[%emt 0:00:19]} Rf1+ $1 {[%emt 0:00:34]} 37. Kh2 {[%emt 0:00:00]} Bf4 {[%emt 0:00:39]} 38. Nxf4 {[%emt 0:00:03]} exf4 {[%emt 0:00:00] KR-KR} 39. Rg5 {[%emt 0:01:23]} Re1 {[%emt 0:00:52]} 40. Kxh3 {[%emt 0:00:20]} Rxe4 {[%emt 0:00:01][%cal Be1e4,Be4c4,Bc4c2,Bc2a2][%mdl 32]} 41. Rxh5+ {[%emt 0:00:07]} Kg6 {[%emt 0:00:02]} 42. Kg4 {[%emt 0:00:06]} Rxc4 {[%emt 0:00:07][%cal Of4f3]} 43. Rg5+ {[%emt 0:00:46]} Kf6 {[%emt 0:00:01][%cal Of4f3] ( -> ...f3+!)} 44. Rf5+ {[%emt 0:00:00]} Ke7 {[%emt 0:00:01]} 45. Rxf4 {[%emt 0:00:02]} Rc2 {[%emt 0:00:01]} 46. b4 {[%emt 0:00:39]} Rxa2 {[%emt 0:00:02]} 47. bxc5 {[%emt 0:00:30]} dxc5 {[%emt 0:00:03]} 48. Kf3 {[%emt 0:00:01]} Rd2 {[%emt 0:00:18]} 49. Ke4 {[%emt 0:00:14]} Rd4+ {[%emt 0:00:07]} 50. Ke5 {[%emt 0:00:02]} Rxf4 {[%emt 0:00:01]} 51. Kxf4 {[%emt 0:00:00]} Kd6 {[%emt 0:00:00]} 52. Ke4 {[%emt 0:00:01]} c4 {[%emt 0:00:00]} 53. Kd4 {[%emt 0:00:00]} c3 {[%emt 0:00:00]} 54. Kxc3 {[%emt 0:00:01]} Kxd5 {[%emt 0:00:00] Weighted Error Value: White=0.04 (flawless) /Black=0.03 (flawless)} 1/2-1/2

[Event "MCCT Oslo Esports Cup 2022"]
[Site "Oslo"]
[Date "2022.04.20"]
[Round "4.1"]
[White "Duda, Jan-Krzysztof"]
[Black "Mamedyarov, Shakhriyar"]
[Result "1-0"]
[ECO "D38"]
[WhiteElo "2750"]
[BlackElo "2771"]
[Annotator "TA"]
[PlyCount "79"]
[EventDate "2022.04.14"]
[EventType "tourn"]
[EventCountry "NOR"]
[SourceTitle "playchess.com"]
[Source "ChessBase"]
[SourceQuality "1"]
[TimeControl "1500+10"]

{[%evp 12,79,17,24,33,11,35,35,39,38,41,39,39,41,33,33,35,18,44,25,39,39,32,25,35,38,46,29,28,0,-7,-7,78,80,112,0,127,91,104,116,176,163,258,252,304,284,341,270,270,263,259,253,253,243,308,285,302,308,285,287,301,300,270,257,326,322,440,440,440,432]} 1. d4 {[%emt 0:10:00]} Nf6 {[%emt 0:10:00]} 2. c4 {[%emt 0:00:04]} e6 {[%emt 0:00:01]} 3. Nf3 {[%emt 0:00:03]} d5 {[%emt 0:00:01]} 4. Nc3 {[%emt 0:00:03]} Bb4 {[%emt 0:00:04]} 5. cxd5 {[%emt 0:00:33]} exd5 {[%emt 0:00:00]} 6. Bg5 {[%emt 0:00:01]} O-O {[%emt 0:00:28]} 7. e3 {[%emt 0:00:36]} Bf5 {[%emt 0:00:21] D38: Queen's Gambit Declined: Ragozin Defence (4 Nf3 Bb4).} 8. Nd2 $5 {[%emt 0:01:58][%mdl 4] Leaves trodden paths.} c6 {[%emt 0:05:23]} 9. Qf3 {[%emt 0:00:50]} Bg6 {[%emt 0:00:48] White is slightly better.} 10. Bxf6 {[%emt 0:00:27]} Qxf6 {[%emt 0:00:00]} 11. Qxf6 {[%emt 0:00:02]} gxf6 {[%emt 0:00:00] [#]} 12. a3 $146 {[%emt 0:01:13]} ({Predecessor:} 12. Rc1 Nd7 13. a3 Bd6 14. h4 h6 15. g3 Rfe8 16. Bh3 f5 17. O-O Nf6 18. Na4 {½-½ (54) Frey,M (2047)-Singer,M (1922) Bayern 2011}) 12... Bd6 {[%emt 0:00:11]} 13. Be2 {[%emt 0:01:13]} Nd7 {[%emt 0:00:05]} 14. Rc1 {[%emt 0:02:53]} Rfe8 {[%emt 0:01:36]} 15. Nb3 {[%emt 0:00:39]} h6 {[%emt 0:01:46]} 16. Na5 {[%emt 0:01:04]} Rab8 {[%emt 0:00:21]} 17. b4 {[%emt 0:00:48]} f5 {[%emt 0:00:31]} 18. g3 {[%emt 0:00:05] Prevents f4.} Nf6 {[%emt 0:00:01]} 19. Na4 {[%emt 0:01:53]} Ne4 {[%emt 0:01:26]} 20. f3 {[%emt 0:00:52]} Nxg3 {[%emt 0:01:22]} 21. hxg3 {[%emt 0:00:00] Black must now prevent Kf2.} Bxg3+ {[%emt 0:00:22]} (21... Rxe3 $11 {keeps the balance.} 22. Rc3 Bxg3+ 23. Kd2 Ree8) 22. Kd2 $16 {[%emt 0:01:56] Threatens to win with f4.} f4 {[%emt 0:00:04]} 23. Rxh6 {[%emt 0:00:38]} ({White must play} 23. Rcg1 $1 $16) 23... Rxe3 {[%emt 0:00:14] [#]} (23... Kg7 $1 $11 {remains equal.} 24. Rch1 Rxe3) 24. Nc3 $1 {[%emt 0:00:27] Black is on the road to losing.} Kg7 {[%emt 0:01:07]} 25. Rhh1 {[%emt 0:00:02]} Re7 {[%emt 0:00:02] [#]} (25... a6 $16) 26. Rcf1 $1 $18 {[%emt 0:00:45]} Rbe8 {[%emt 0:00:02]} (26... Re3 $142 27. Rhg1 Rbe8) 27. Bd3 {[%emt 0:00:19]} Kf6 {[%emt 0:01:33]} 28. Bxg6 {[%emt 0:00:09]} fxg6 {[%emt 0:00:00]} 29. Nb3 {[%emt 0:00:09]} g5 {[%emt 0:00:27]} 30. Nc5 {[%emt 0:00:07]} Bh4 {[%emt 0:00:40]} 31. Nd3 {[%emt 0:00:12]} Kf5 {[%emt 0:00:00]} 32. Rh2 {[%emt 0:00:12]} a5 {[%emt 0:00:18]} 33. bxa5 {[%emt 0:00:13]} Ra8 {[%emt 0:00:01]} 34. Re2 {[%emt 0:00:03]} Rxe2+ {[%emt 0:00:02]} 35. Kxe2 {[%emt 0:00:00]} ({Less strong is} 35. Nxe2 Rxa5 36. Rb1 Ra7 $16) 35... Rxa5 {[%emt 0:00:01]} 36. a4 {[%emt 0:00:00]} Ra8 {[%emt 0:00:09]} 37. Ne5 {[%emt 0:00:16]} c5 {[%emt 0:00:04]} 38. Kd3 {[%emt 0:00:02]} ({Not} 38. Nxd5 Rxa4 39. Rd1 Ra2+ 40. Kd3 Bf2 $16) 38... Re8 {[%emt 0:00:39]} 39. Ng4 {[%emt 0:00:33]} cxd4 {[%emt 0:00:39]} 40. Kxd4 {[%emt 0:00:03] Weighted Error Value: White=0.09 (flawless) /Black=0.31} 1-0